Cogmind - Beta 13 @@@ ROGUE MODE // 2024.08.04 @ 10:25:22 Player: CrossedViper Result: Destroyed by 99-TNT with 99-TNT's Nukerbomber Performance ------------- Evolutions (1) 500 Regions Visited (6) 1200 Robots Destroyed (74) 370 Value Destroyed (1541) 1541 Prototype IDs (26) 520 Alien Tech Used (0) 0 Bonus (104) 104 TOTAL SCORE: 4235 Bonus ------- High Alert Combat Kills 30 Follower Combat Kills 53 Aligned with FarCom 300 Friendly Fire -279 Cogmind --------- Core Integrity 0/400 Matter 295/300 Energy 99/100 System Corruption 5% Temperature Cool (0) Movement Core (50) Location -8/Mines Parts ------- > --- POWER (1) -------- (None) > --- PROPULSION (2) --- (None) > --- UTILITY (4) ------ Machine Analyzer > --- WEAPON (2) ------- (None) > --- INVENTORY (5) ---- Reinforced Fission Core Huge Storage Unit Experimental Targeting Computer Flak Cannon Grenade Launcher Peak State ------------ > --- POWER ------------ Light Nuclear Core > --- PROPULSION ------- Light Treads Light Treads > --- UTILITY ---------- Cooling System Huge Storage Unit Core Shielding Improved Utility Shielding > --- WEAPON ----------- Improved Assault Rifle Improved Assault Rifle > --- INVENTORY -------- Light Treads Light Treads Light Treads Light Treads Large Storage Unit High-capacity Matter Pod Machine Analyzer Autogun Improved Assault Rifle Improved Assault Rifle Improved Assault Rifle Improved Assault Rifle Flak Cannon Grenade Launcher Grenade Launcher Heavy Mace [Rating: 21] Favorites ----------- Power Light Nuclear Core Engine Ion Engine Power Core Light Nuclear Core Propulsion Light Treads Treads Light Treads Wheel Wheel Utility Large Storage Unit Device Cooling System Storage Large Storage Unit Processor Signal Interpreter Protection Core Shielding Weapon Improved Assault Rifle Energy Gun Pulse Rifle Ballistic Gun Improved Assault Rifle Launcher Grenade Launcher Build | -11 -10 -10 -9 -9 -9 -8 ------- Run | Yrd Mat Min Mat Min Exi Min Slots Evolved 2 | . . . 2 . . . Power . | . . . . . . . Propulsion . | . . . . . . . Utility 2 | . . . 2 . . . Weapon . | . . . . . . . Parts Attached 70 | 6 8 7 29 2 18 . Power 6 | 1 1 . 3 1 . . Engine 3 | 1 . . 2 . . . Core 3 | . 1 . 1 1 . . Reactor . | . . . . . . . Propulsion 18 | 2 4 . 8 . 4 . Treads 16 | 2 2 . 8 . 4 . Leg . | . . . . . . . Wheel 2 | . 2 . . . . . Hover . | . . . . . . . Flight . | . . . . . . . Utility 21 | 1 2 . 10 1 7 . Device 5 | . . . 2 . 3 . Storage 6 | 1 1 . 1 1 2 . Processor 4 | . . . 3 . 1 . Hackware . | . . . . . . . Protection 6 | . 1 . 4 . 1 . Artifact . | . . . . . . . Weapon 25 | 2 1 7 8 . 7 . Energy Gun 4 | 1 . 2 1 . . . Energy Cannon . | . . . . . . . Ballistic Gun 14 | 1 . 2 5 . 6 . Ballistic Cannon . | . . . . . . . Launcher 7 | . 1 3 2 . 1 . Special Weapon . | . . . . . . . Impact Weapon . | . . . . . . . Slashing Weapon . | . . . . . . . Piercing Weapon . | . . . . . . . Special Melee Weapon . | . . . . . . . Unidentified Prototypes 3 | . . . 1 . 2 . Corrupted Parts 2 | . . . . . 2 . System Corruption 5 | . . . . . 5 . Parts Lost 23 | . . 3 6 . 11 3 Power 3 | . . . 2 . 1 . Propulsion 8 | . . . 2 . 5 1 Utility 3 | . . 1 1 . . 1 Weapon 9 | . . 2 1 . 5 1 Highest Loss Streak 5 | . . 3 3 . 5 3 To Critical Strikes 9 | . . . . . 9 . Average Slot Usage (%) 94 | . 95 89 90 99 97 39 Engine 3 | . 8 . 4 8 . . Core 6 | . 5 14 1 2 9 . Treads 18 | . 23 . 18 22 21 8 Wheel 4 | . 4 28 2 . . . Device 6 | . . . 10 11 11 8 Storage 11 | . 14 14 11 11 10 . Processor 1 | . . . 6 . . 11 Protection 15 | . 11 5 13 22 21 . Energy Gun 4 | . 8 12 4 . . . Ballistic Gun 17 | . 12 10 16 22 22 11 Launcher 1 | . 5 3 . . . . Naked Turns . | . . . . . . . Heaviest Build 96 | 13 33 34 36 96 96 3 Greatest Support 40 | 40 40 20 40 40 40 3 Greatest Overweight (x) 2 | . 1 1 2 2 2 . Average Overweight (x) . | . . 1 . . . . Largest Inventory Capacity 25 | 8 15 15 15 25 25 5 Average Capacity 14 | 6 10 15 15 15 17 5 Most Carried 16 | 4 11 15 15 16 16 5 Average Carried 12 | 2 7 13 14 15 12 5 Final Capacity 25 | 8 15 15 15 25 5 5 Final Carried 16 | 3 11 13 15 16 5 5 Class Distribution -------------------- 56% | Scavenger-Mutant 43% | Mutant Dominant Class ---------------- Mutant | -10/Materials Mutant | -10/Mines Scavenger-Mutant | -9/Materials Scavenger-Mutant | -9/Mines Scavenger-Mutant | -9/Exiles Mutant | -8/Mines Resources | -11 -10 -10 -9 -9 -9 -8 ----------- Run | Yrd Mat Min Mat Min Exi Min Matter Collected 2438 | 256 295 405 860 129 493 . Remotely . | . . . . . . . Salvage Created 2416 | . 523 176 1383 200 134 . Parts 149 | . 35 5 100 5 4 . Haulers Intercepted 4 | . 1 . 3 . . . Recyclers Shooed 3 | . . . 3 . . . Parts Field Recycled . | . . . . . . . Retrieved Matter . | . . . . . . . Parts Self-Destructed . | . . . . . . . Prevented . | . . . . . . . Kills | -11 -10 -10 -9 -9 -9 -8 ------- Run | Yrd Mat Min Mat Min Exi Min Combat Hostiles Destroyed 58 | . 12 17 22 3 4 . Guns 31 | . 9 1 16 3 2 . AOE 27 | . 3 16 6 . 2 . Classes Destroyed 12 | . 7 1 4 . . . Worker 8 | . 2 . 6 . . . Builder 5 | . . . 5 . . . Tunneler 1 | . . . 1 . . . Hauler 4 | . 1 . 3 . . . Recycler 5 | . 1 1 3 . . . Mechanic 1 | . 1 . . . . . Watcher 5 | . 1 . 4 . . . Swarmer 11 | . 5 3 3 . . . Grunt 23 | . 7 2 10 4 . . Duelist 2 | . . . 2 . . . Sentry 7 | . . . 7 . . . Assembled 15 | . . 12 . . 3 . Thug 1 | . . 1 . . . . Best Kill Streak 12 | . 3 12 9 2 3 . Combat Bots Only 11 | . 3 11 5 2 3 . Max Kills in Single Turn 4 | . 1 4 2 2 2 . Gunslinging 1 | . . . 1 . . . Exploded 4 | . 1 4 2 . 2 . Melee . | . . . . . . . Uniques/NPCs Destroyed 1 | . . . . . 1 . 8R-AWN (-9/Exiles) Combat | -11 -10 -10 -9 -9 -9 -8 -------- Run | Yrd Mat Min Mat Min Exi Min Hostile Shots Fired 301 | . 71 22 88 13 99 8 Missed 90 | . 21 7 30 3 29 . Damage Taken 3455 | . 608 209 839 142 1255 402 Core 560 | . 91 44 135 8 119 163 Absorbed by Shields . | . . . . . . . Redirected to Shielding 86 | . . . 14 1 71 . Regen/Repaired (Parts) 298 | . 213 . 85 . . . Core Remaining (%) 73 | 100 . 46 . . . . Volleys Fired 268 | . 71 22 105 13 57 . Largest 2 | . 2 2 2 2 2 . Hottest 93 | . 60 83 93 46 46 . Shots Fired 489 | . 127 26 198 26 112 . Gun 452 | . 117 9 189 26 111 . Cannon . | . . . . . . . Launcher 37 | . 10 17 9 . 1 . Special . | . . . . . . . Kinetic 363 | . 61 4 161 26 111 . Thermal 89 | . 56 5 28 . . . Explosive 37 | . 10 17 9 . 1 . Electromagnetic . | . . . . . . . Robot Hit Streak 19 | . 9 4 19 10 14 . Robot Miss Streak 4 | . 3 2 4 1 4 . Penetration Max . | . . . . . . . Secondary Targets 3 | . 1 . 2 . . . Max Gunslinging Chain 1 | . 1 . 1 . . . Shots Hit Robots 322 | . 71 12 137 21 81 . Core Hits 163 | . 35 31 70 7 20 . Critical Kills 1 | . . . 1 . . . Critical Parts Destroyed 1 | . 1 . . . . . Critical Strikes 3 | . 1 . 1 . 1 . Destroy 3 | . 1 . 1 . 1 . Melee Attacks . | . . . . . . . Impact . | . . . . . . . Slashing . | . . . . . . . Piercing . | . . . . . . . Sneak Attacks . | . . . . . . . Combat Hostiles . | . . . . . . . Follow-up Attacks . | . . . . . . . Damage Inflicted 6499 | 4 1111 1237 2496 346 1305 . Guns 4354 | . 797 78 1917 340 1222 . Cannons . | . . . . . . . Explosions 2107 | . 296 1159 569 . 83 . Melee . | . . . . . . . Ramming 38 | 4 18 . 10 6 . . Kinetic 3580 | . 433 27 1558 340 1222 . Thermal 774 | . 364 51 359 . . . Explosive 2107 | . 296 1159 569 . 83 . Electromagnetic . | . . . . . . . Impact . | . . . . . . . Slashing . | . . . . . . . Piercing . | . . . . . . . Highest Corruption 5 | . 1 1 . . 5 5 Average Corruption 1 | . 1 1 . . 4 5 Corruption Purged . | . . . . . . . Corruption Blocked . | . . . . . . . Effects 9 | . . 4 . . 4 1 Message Errors 2 | . . 1 . . 1 . Matter Fused 1 | . . . . . 1 . Heat Flow Errors 2 | . . . . . 1 1 Energy Discharges 1 | . . 1 . . . . Data Loss (minor) 2 | . . 1 . . 1 . Data Loss (major) 1 | . . 1 . . . . Overload Shots . | . . . . . . . Overflow Damage 83 | . 7 42 34 . . . Projectiles . | . . . . . . . Explosions 83 | . 7 42 34 . . . Melee . | . . . . . . . Knockbacks 1 | . 1 . . . . . Impact 1 | . 1 . . . . . Kinetic . | . . . . . . . Secondary . | . . . . . . . Self-Inflicted Damage 174 | . 46 31 97 . . . Shots 6 | . 2 1 3 . . . Rammed 11 | 1 4 . 2 4 . . Targets Rammed 11 | 1 4 . 2 4 . . Kicked . | . . . . . . . Crushed . | . . . . . . . Highest Temperature 269 | . 204 108 269 . 53 154 Average Temperature 55 | . 44 35 88 . 53 100 Received Heat Transfer 548 | . 180 35 264 69 . . Effects 2 | . . . 2 . . . Interference 2 | . . . 2 . . . Siege Activations . | . . . . . . . Robots Corrupted . | . . . . . . . Combat Hostiles . | . . . . . . . Parts Fried . | . . . . . . . Impact Corruptions . | . . . . . . . Robots Melted . | . . . . . . . Combat Hostiles . | . . . . . . . Parts Melted 3 | . 1 . 1 1 . . Heat Transferred 1738 | . 850 111 777 . . . Parts Sabotaged . | . . . . . . . Parts Stolen . | . . . . . . . Parts Stripped . | . . . . . . . Power Chain Reactions . | . . . . . . . Alert | -11 -10 -10 -9 -9 -9 -8 ------- Run | Yrd Mat Min Mat Min Exi Min Peak Influence 438 | . 196 278 438 335 . . Initial 167 | . . 52 31 167 . . Average 159 | . 87 126 270 195 . . Maximum Alert Level 2 | . . 1 2 1 . . Low Security (%) 66 | 100 100 70 21 57 . 100 Level 1 30 | . . 29 66 42 . . Level 2 3 | . . . 12 . . . Level 3 . | . . . . . . . Level 4 . | . . . . . . . Level 5 . | . . . . . . . High Security . | . . . . . . . Max Security . | . . . . . . . Squads Dispatched 11 | . 6 1 4 . . . Investigation 5 | . 4 1 . . . . Extermination . | . . . . . . . Reinforcement 6 | . 2 . 4 . . . Assault . | . . . . . . . Garrison . | . . . . . . . Intercept . | . . . . . . . Searches Triggered . | . . . . . . . Construction Impeded . | . . . . . . . Haulers Reinforced . | . . . . . . . Active Scanning Responses . | . . . . . . . Cargo Convoy Interrupts . | . . . . . . . Stealth | -11 -10 -10 -9 -9 -9 -8 --------- Run | Yrd Mat Min Mat Min Exi Min Distress Signals 3 | . 1 . 2 . . . Communications Jammed . | . . . . . . . Distress Signals . | . . . . . . . Times Spotted 87 | . 25 18 29 10 4 1 Peak Tracking Total 12 | . 4 12 5 4 9 1 Tactical Retreats 4 | . 1 2 1 . . . Traps | -11 -10 -10 -9 -9 -9 -8 ------- Run | Yrd Mat Min Mat Min Exi Min Traps Triggered 4 | . 3 . 1 . . . Indirectly . | . . . . . . . Trap Hack Attempts . | . . . . . . . Triggered . | . . . . . . . Disarmed . | . . . . . . . Reprogrammed . | . . . . . . . Reused . | . . . . . . . Traps Extracted . | . . . . . . . Installed . | . . . . . . . Triggered . | . . . . . . . Machines | -11 -10 -10 -9 -9 -9 -8 ---------- Run | Yrd Mat Min Mat Min Exi Min Machines Disabled 10 | . 1 3 . 1 5 . Max in Single Turn 2 | . 1 1 . 1 2 . Machines Repaired . | . . . . . . . Machines Dismantled . | . . . . . . . Machines Sabotaged . | . . . . . . . Overloaded Fab Kills . | . . . . . . . Hacking | -11 -10 -10 -9 -9 -9 -8 --------- Run | Yrd Mat Min Mat Min Exi Min Machines Accessed 11 | . 6 1 2 . 2 . Terminals 5 | . 4 . 1 . . . Fabricators . | . . . . . . . Repair Stations 2 | . 1 . 1 . . . Recycling Units 1 | . 1 . . . . . Scanalyzers . | . . . . . . . Garrison Access . | . . . . . . . Total Hacks 32 | . 24 1 5 . 2 . Successful 16 | . 9 1 4 . 2 . Failed 15 | . 14 . 1 . . . Catastrophic 1 | . 1 . . . . . Database Lockouts 1 | . 1 . . . . . Manual 19 | . 15 . 3 . 1 . Terminals 18 | . 15 . 3 . . . Fabricators . | . . . . . . . Repair Stations 8 | . 6 . 2 . . . Recycling Units 3 | . 3 . . . . . Scanalyzers . | . . . . . . . Garrison Access . | . . . . . . . Terminal Hacks 6 | . 2 1 1 . 2 . Record 1 | . . . . . 1 . Robot Analysis 1 | . 1 . . . . . Open Door 1 | . . 1 . . . . Terminal Index 1 | . . . 1 . . . Hauler Manifests 1 | . 1 . . . . . Derelict Proto ID Bank 1 | . . . . . 1 . Fabricator Hacks . | . . . . . . . Repair Station Hacks 7 | . 5 . 2 . . . Scan Component 4 | . 3 . 1 . . . Repair 3 | . 2 . 1 . . . Recycling Unit Hacks . | . . . . . . . Scanalyzer . | . . . . . . . Garrison Access Hacks . | . . . . . . . Unauthorized Hacks 3 | . 2 . 1 . . . Terminals 2 | . 1 . 1 . . . Botnet 2 | . 1 . 1 . . . Fabricators . | . . . . . . . Repair Stations . | . . . . . . . Recycling Units 1 | . 1 . . . . . Tunnel 1 | . 1 . . . . . Scanalyzers . | . . . . . . . Garrison Access . | . . . . . . . Data Cores Recovered . | . . . . . . . Used . | . . . . . . . Hacking Detections 7 | . 6 . 1 . . . Full Trace Events 4 | . 3 . 1 . . . Feedback Events 1 | . 1 . . . . . Corruption 1 | . 1 . . . . . Feedback Blocked . | . . . . . . . Robot Schematics Acquired . | . . . . . . . Robots Built . | . . . . . . . Authchips . | . . . . . . . Time . | . . . . . . . Total Robot Build Rating . | . . . . . . . Part Schematics Acquired . | . . . . . . . Parts Built . | . . . . . . . Authchips . | . . . . . . . Time . | . . . . . . . Total Part Build Rating . | . . . . . . . Parts Repaired 3 | . 2 . 1 . . . Time 78 | . 52 . 26 . . . Parts Recycled . | . . . . . . . Recycled Matter . | . . . . . . . Retrieved Matter . | . . . . . . . Retrieved Components . | . . . . . . . Parts Scanalyzed . | . . . . . . . Part Schematics Acquired . | . . . . . . . Parts Damaged . | . . . . . . . Bothacking | -11 -10 -10 -9 -9 -9 -8 ------------ Run | Yrd Mat Min Mat Min Exi Min Used RIF Installer . | . . . . . . . Robots Hacked . | . . . . . . . Non-combat . | . . . . . . . Combat . | . . . . . . . Robot Hacks Applied . | . . . . . . . Relay Couplers Released . | . . . . . . . Fabnet Peak Effective % . | . . . . . . . Robots Rewired . | . . . . . . . Allies Hacked . | . . . . . . . Hacks Repelled . | . . . . . . . Allies | -11 -10 -10 -9 -9 -9 -8 -------- Run | Yrd Mat Min Mat Min Exi Min Total Allies 3 | . . . . 3 . . Largest Group 3 | . . . . 3 . . Highest-Rated Group 40 | . . . . 40 . . Highest-Rated Ally 16 | . . . . 16 . . Total Orders . | . . . . . . . Ally Attacks 25 | . . . . 25 . . Total Damage 259 | . . . . 259 . . Kills 5 | . . . . 5 . . Allies Corrupted . | . . . . . . . Allies Melted . | . . . . . . . Intel | -11 -10 -10 -9 -9 -9 -8 ------- Run | Yrd Mat Min Mat Min Exi Min Robot Analysis Total 1 | . 1 . . . . . Derelict Logs Recovered 2 | . . . . 2 . . Drone Launches . | . . . . . . . Drone Recoveries . | . . . . . . . Exploration | -11 -10 -10 -9 -9 -9 -8 ------------- Run | Yrd Mat Min Mat Min Exi Min Turns Passed 5870 | 73 1401 669 1014 844 1826 43 Spaces Moved 2889 | 46 741 341 396 465 823 77 Core 95 | 15 . . . . 3 77 Treads 2185 | 31 574 . 295 465 820 . Legs . | . . . . . . . Wheels 609 | . 167 341 101 . . . Hover . | . . . . . . . Flight . | . . . . . . . Fastest Speed 50 | 50 95 95 95 160 50 50 Average Speed 152 | 124 145 95 145 164 191 50 Slowest Speed 320 | 160 160 95 160 320 320 50 Overloaded Moves . | . . . . . . . Propulsion Burnouts . | . . . . . . . Robots Hopped . | . . . . . . . Cave-ins Triggered . | . . . . . . . Exploration Rate (%) 48 | 5 92 48 46 59 70 20 Regions Visited 6 Branch Regions 4 Pre-discovered Areas 2 | . 1 . . . 1 . Known Exits Taken . | . . . . . . . Unknown Exits Taken 6 | 1 1 1 1 1 1 . Scrap Searched 3 | . . 1 . 2 . . Spaces Dug 61 | . 40 21 . . . . Terrain Destroyed 199 | . 58 95 43 . 3 . Melee . | . . . . . . . Projectile . | . . . . . . . AOE 199 | . 58 95 43 . 3 . Terrain Rammed . | . . . . . . . Walls Destroyed . | . . . . . . . Machines Disabled . | . . . . . . . Actions | -11 -10 -10 -9 -9 -9 -8 --------- Run | Yrd Mat Min Mat Min Exi Min Total 3858 | 61 935 660 632 517 972 81 Wait 516 | . 94 280 72 32 34 4 Move 2883 | 45 740 340 395 464 822 77 Hop . | . . . . . . . Pick Up 60 | 9 13 8 13 1 16 . Fast Attach 20 | . 1 . 14 1 4 . Attach 25 | 6 . 3 6 . 10 . Detach . | . . . . . . . Swap 25 | . 7 4 9 1 4 . Drop 50 | . 5 3 16 1 25 . Fire 268 | . 71 22 105 13 57 . Melee . | . . . . . . . Ram 1 | . 1 . . . . . Kick . | . . . . . . . Crush 10 | 1 3 . 2 4 . . Escape Stasis . | . . . . . . . Rewire . | . . . . . . . Trap . | . . . . . . . Miscellaneous . | . . . . . . . Route ------- -11/Scrapyard -10/Materials (discovered 5 exits: *Mat x3 / *Min x2) -10/Mines -9/Materials -9/Mines -9/Exiles -8/Mines History --------- Turn | Location | Event 3 | -11/Scrapyard | Discovered new exit (range 15) 74 | -11/Scrapyard | Entered Materials 219 | -10/Materials | Discovered new exit (range 14) 311 | -10/Materials | Build established: Mutant 763 | -10/Materials | Discovered new exit (range 7) 904 | -10/Materials | Discovered new exit (range 14) 928 | -10/Materials | Discovered new exit (range 15) 1094 | -10/Materials | Discovered new exit (range 7) 1325 | -10/Materials | Repaired Assault Rifle 1352 | -10/Materials | Repaired Lgt. Treads 1384 | -10/Materials | Central database locked down 1475 | -10/Materials | Entered Mines 1482 | -10/Mines | Met a Derelict shopkeep closing up shop 1546 | -10/Mines | Discovered new exit (range 11) 1689 | -10/Mines | Assembled infested the area 1765 | -10/Mines | Destroyed 11 combat bots 1772 | -10/Mines | Lost 3 parts (1u2w) 2077 | -10/Mines | Core integrity fell below 50% 2144 | -10/Mines | Entered Materials 2144 | -9/Materials | Evolved 2 slots: Utility x2 2336 | -9/Materials | Repaired Lgt. Treads 2480 | -9/Materials | Lost 3 parts (1p1u1w) 2638 | -9/Materials | Build established: Scavenger-Mutant 3094 | -9/Materials | Discovered new exit (range 15) 3158 | -9/Materials | Entered Mines 3160 | -9/Mines | Assisted by bots powering up and referring to "LRC-V3" 3197 | -9/Mines | Met a Derelict bent on vengeance 3375 | -9/Mines | Learned Materials terminal intel 3392 | -9/Mines | Lost 3 allies 3556 | -9/Mines | Learned 8 Materials zone layouts 3989 | -9/Mines | Deemed a non-threat by the Exiles lab entrance 3989 | -9/Mines | Discovered new exit (range 5) 4002 | -9/Mines | Entered Exiles 4079 | -9/Exiles | Met 8R-AWN 4130 | -9/Exiles | Met EX-HEX 4262 | -9/Exiles | Met EX-DEC 4274 | -9/Exiles | Learned location of Zion (-6) 4405 | -9/Exiles | Discovered new exit (range 14) 5232 | -9/Exiles | Met EX-BIN 5254 | -9/Exiles | Aligned with FarCom system 5256 | -9/Exiles | Given EX-Vault access code 5292 | -9/Exiles | Opened EX-Vault 5329 | -9/Exiles | Warned to stay clear of 0b10 Research branches 5431 | -9/Exiles | Attacked by the Exiles 5558 | -9/Exiles | Lost 3 parts (2n1w) 5575 | -9/Exiles | Core integrity fell below 50% 5622 | -9/Exiles | Lost 5 parts (1p2n2w) 5673 | -9/Exiles | Destroyed 8R-AWN 5703 | -9/Exiles | Lost 3 parts (1n2w) 5703 | -9/Exiles | Found Prototype Processor 5828 | -9/Exiles | Entered Mines 5864 | -8/Mines | 99-TNT came to Exiles' defense 5867 | -8/Mines | Build established: Mutant 5870 | -8/Mines | Core integrity fell below 20% 5871 | -8/Mines | Destroyed by 99-TNT with 99-TNT's Nukerbomber Last Messages --------------- 05810_ Dropped Imp. Utility Shielding. 05810_ Dropped Lrg. Storage Unit. 05811_ Dropped Cooling System. 05816_ Dropped Hcp. Storage Unit. 05817_ Acquired Huge Storage Unit. 05819_ Acquired Machine Analyzer. 05825_ Acquired Flak Cannon. 05826_ System corrupted: Heat flow error (+107). 05826_ Dropped Imp. Assault Rifle. 05827_ Dropped Grenade Launcher. 05827_ Acquired Grenade Launcher. A strange signal echoes through the mines. LOCATION=UNKNOWN GOAL=ESCAPE 05848_ System corrupted: Heat flow error (+208). 05864_ 99-TNT: "I came as fast as I could... Wait, it was you!" 05869_ Lgt. Treads destroyed. 05869_ Exp. Heat Sink destroyed. 05871_ Imp. Assault Rifle destroyed. Map ----- +----------------------------------------------------+ | | | | | | | | | | | | | | | | | | | | | ???????????????????????????????????????????? | | ???????????????????????????????????????????? | | ???????????????????????????????????????????? | | ???????????????????????????????????????????? | | ???????????????????????????????????????????? | | ???????????????????????????????????????????? | | ???????????????????????????????????????????? | | ???????????????????????????????????????????? | | ???###?????????????????????????????????????? | | ??## #?####???????????????????????????????? | | ??# ## ########???###################### | | ?## # ##??# | | ?# #??# ## ################# | | ?# #??# ## #???????????????? | | ??# #### ## #???????????????? | | ???# d @ ## #???????????????? | | ????## #### ## #???????????????? | | ?????## #??# ## #???????????????? | | ??????###### #??# ## #???????????????? | | ???????????#########??# ## #???????????????? | | ??????????????????????# ? ????????????????? | | ??????????????????????# ? ????????????????? | | ??????????????????????# ? ????????????????? | | ???????????????????????# ?#????????????????? | | ????????????????????????#??????????????????? | | ???????????????????????????????????????????? | | ???????????????????????????????????????????? | | ???????????????????????????????????????????? | | ???????????????????????????????????????????? | | ???????????????????????????????????????????? | | ???????????????????????????????????????????? | | ???????????????????????????????????????????? | | ???????????????????????????????????????????? | | ???????????????????????????????????????????? | | ???????????????????????????????????????????? | | ???????????????????????????????????????????? | | ???????????????????????????????????????????? | | ???????????????????????????????????????????? | | ???????????????????????????????????????????? | | ???????????????????????????????????????????? | +----------------------------------------------------+ Best States ------------- Heat Dissipation 54 Energy Generation 14 Energy Capacity 250 Matter Stores 300 Matter Capacity 300 Sight Range 16 Terrain Scan Range 14 Terrain Scan Density 85 Additional Mass Support 12 Armor Coverage 150 Core Shielding 20 Utility Shielding 66 Evasion (%) 50 Recoil Reduction 2 Item Schematics ----------------- None Robot Schematics ------------------ None Fabricated ------------ Nothing Alien Tech Used ----------------- None Achievements -------------- None Challenges ------------ None Game ------ Seed BehemothHoverPlatform Manual? 0 Play Time 00:27:52 Cumulative 850.8 hours Start 2024.08.04 @ 09:57:47 End 2024.08.04 @ 10:25:22 Sessions 1 Manual Loads 0 Difficulty Rogue Special Mode None Game No. 537 Rogue 530 Adventurer 0 Explorer 7 Win Type - Total 57 Types 21/5/20/2/0/1/6/1/1 Lore% 90 Gallery% 97 Achievement% 84 Wizard Run 0 Options --------- Layout 2 ASCII 0 Keyboard 0 Movement Numpad Keybinds 0 Fullscreen 1 Font 24/Tamsyn Map View 50x44 Zoom Use 0% Tactical HUD 1 Map Filters NONE Filters NONE Steam 1 RUN: b2923472-c548-4efb-b26b-23dc03453fcd